bitfinex/quotes_BTCUSD_20240819
["timestamp","ask_amount","ask_price","bid_price","bid_amount"]
[1724026874621,0.04945574,58501.0,58486.0,0.02967]
[1724026874828,0.04945574,58505.0,58486.0,0.02967]
[1724026875037,0.51184,58504.0,58487.0,0.38629154]
[1724026875483,0.17155454,58503.0,58487.0,0.1821]
[1724026875909,0.51184,58504.0,58488.0,0.1]
[1724026875910,0.17155454,58502.0,58488.0,0.1]
[1724026876124,0.17155454,58502.0,58487.0,0.1821]
[1724026876125,0.04914976,58501.0,58487.0,0.1821]
[1724026876328,0.003,58490.0,58485.0,0.2967]
[1724026876610,0.17155454,58489.0,58479.0,0.00043448]
[1724026876855,0.001,58485.0,58479.0,0.00043448]
[1724026877138,0.001,58487.0,58479.0,0.00043448]
[1724026877311,0.51184,58489.0,58488.0,0.001]
[1724026877548,0.001,58487.0,58479.0,0.00043448]
[1724026877756,0.17155454,58487.0,58479.0,0.00043448]
[1724026877961,0.51184,58489.0,58479.0,0.00043448]
[1724026877962,0.51184,58489.0,58480.0,0.17155454]
[1724026878364,0.51184,58489.0,58485.0,0.001]
[1724026878565,0.51184,58489.0,58480.0,0.17155454]
[1724026878777,0.51684,58489.0,58481.0,1.5]
[1724026879171,0.51184,58489.0,58488.0,0.001]
[1724026879438,0.51184,58489.0,58488.0,0.17255454]
[1724026879644,0.51184,58489.0,58488.0,0.001]
[1724026879869,0.51184,58489.0,58483.0,1.5]
[1724026880092,0.003,58484.0,58483.0,1.5]
[1724026880983,0.51484,58484.0,58483.0,1.5]
[1724026881194,0.51484,58484.0,58477.0,0.1821]
[1724026881195,0.001,58478.0,58477.0,0.1821]
[1724026881406,0.51184,58478.0,58474.0,0.2967]
[1724026881611,0.001,58477.0,58474.0,0.2967]
[1724026882200,0.003,58477.0,58474.0,0.2967]
[1724026882431,0.001,58477.0,58474.0,0.2967]
[1724026882613,0.003,58477.0,58474.0,0.2817]
[1724026882812,0.001,58477.0,58474.0,0.2817]
[1724026883155,0.001,58477.0,58470.0,1.5]
[1724026883359,0.001,58473.0,58467.0,0.19531]
[1724026883554,0.001,58473.0,58467.0,0.00011]
[1724026883555,0.003,58470.0,58467.0,0.00011]
[1724026883986,0.001,58469.0,58460.0,0.1925]
[1724026884187,0.001,58469.0,58423.0,0.4]
[1724026884188,0.001,58456.0,58451.0,0.1932742]
[1724026884399,0.003,58455.0,58451.0,0.1932742]
[1724026884623,0.51184,58454.0,58451.0,1.6932742]
[1724026885058,0.001,58453.0,58451.0,1.6932742]
[1724026885263,0.001,58452.0,58451.0,1.5117742]
[1724026885469,0.51484,58452.0,58451.0,0.0117742]
[1724026885676,0.68639454,58452.0,58451.0,0.0117742]
[1724026886304,0.001,58435.0,58432.0,0.2632774]
[1724026886517,0.51184,58434.0,58433.0,0.17155454]
[1724026886924,0.51184,58434.0,58432.0,0.2632774]
[1724026887507,0.51184,58434.0,58421.0,0.009042]
[1724026887508,0.51184,58434.0,58422.0,0.19]
[1724026887709,0.003,58431.0,58382.0,0.58134809]
[1724026887920,0.51284,58434.0,58391.0,1.02231911]
[1724026887921,0.51177509,58403.0,58391.0,1.02231911]
[1724026888278,0.001,58418.0,58392.0,0.52081709]
[1724026888279,0.001,58407.0,58392.0,0.52081709]
[1724026888504,0.1,58423.0,58393.0,0.4953]
[1724026888705,0.51177509,58417.0,58393.0,0.4953]
[1724026888909,0.49714,58416.0,58394.0,0.0034244]
[1724026889130,0.49714,58416.0,58400.0,0.002]
[1724026889349,0.49714,58416.0,58401.0,0.15655454]
[1724026890176,0.49714,58416.0,58402.0,1.5]
[1724026890386,0.49714,58416.0,58393.0,0.4953]
[1724026890565,0.49714,58416.0,58395.0,0.002]
[1724026890807,0.49714,58416.0,58396.0,0.17155454]
[1724026891013,0.68332963,58415.0,58395.0,1.5]
[1724026891225,0.51177509,58413.0,58395.0,1.5]
[1724026891436,0.17155454,58411.0,58395.0,1.5]
[1724026891610,0.62014,58410.0,58392.0,0.009042]
[1724026891846,0.17155454,58409.0,58392.0,0.009042]
[1724026892053,0.49714,58408.0,58392.0,0.009042]
[1724026892262,0.17155454,58407.0,58392.0,0.009042]
[1724026892466,0.52014,58406.0,58392.0,0.009042]
[1724026892691,0.17155454,58405.0,58392.0,0.009042]
[1724026892900,0.49714,58404.0,58392.0,0.009042]
[1724026893113,0.17155454,58400.0,58392.0,0.009042]
[1724026893326,0.52014,58399.0,58392.0,0.009042]
[1724026893531,0.17155454,58398.0,58392.0,0.009042]
[1724026893762,0.17155454,58395.0,58392.0,0.009042]
[1724026893967,0.49714,58394.0,58392.0,0.009042]
[1724026894185,0.17155454,58393.0,58392.0,0.009042]
[1724026894414,0.17155454,58393.0,58388.0,0.00012]
[1724026894415,0.79169454,58393.0,58391.0,0.13268756]
[1724026894627,0.66869454,58393.0,58391.0,0.13268756]
[1724026894832,0.17155454,58392.0,58391.0,0.13268756]
[1724026895055,0.49714,58392.0,58391.0,0.13268756]
[1724026896555,0.49670386,58392.0,58391.0,0.13268756]
[1724026897245,0.49670386,58392.0,58391.0,0.13359506]
[1724026897459,0.6682584,58392.0,58391.0,0.13359506]
[1724026898313,0.7368974,58392.0,58391.0,0.13359506]
[1724026899339,1.0425974,58392.0,58391.0,0.13359506]
[1724026899581,1.14685714,58392.0,58391.0,0.13359506]
[1724026899978,1.14785714,58392.0,58391.0,0.13359506]
[1724026900231,0.3756,58386.0,58361.0,0.30540594]
[1724026900436,0.17155454,58377.0,58361.0,0.30540594]
[1724026900641,0.49670386,58376.0,58361.0,0.30540594]
[1724026900845,0.17155454,58375.0,58361.0,0.30540594]
[1724026901053,0.49670386,58374.0,58361.0,0.30540594]
[1724026901262,0.17155454,58373.0,58361.0,0.30540594]
[1724026901471,0.1,58384.0,58361.0,0.30540594]
[1724026901472,0.8843584,58372.0,58361.0,0.30540594]
[1724026901883,0.8613584,58372.0,58371.0,0.29620402]
[1724026902091,1.2391584,58372.0,58371.0,0.29620402]
[1724026902712,0.6682584,58372.0,58371.0,0.29620402]
[1724026903098,0.73508424,58372.0,58361.0,0.30540594]
[1724026903346,0.73508424,58372.0,58356.0,0.00116]
[1724026903347,0.17155454,58362.0,58356.0,0.00116]
[1724026903557,0.49670386,58361.0,58356.0,0.00116]
[1724026904031,0.49670386,58361.0,58356.0,0.00216]
[1724026904251,0.49670386,58361.0,58356.0,0.00116]
[1724026904480,0.49670386,58361.0,58359.0,0.001]
[1724026904720,0.49670386,58361.0,58360.0,0.001]
[1724026905365,0.49670386,58361.0,58355.0,0.1]
[1724026905581,0.49670386,58361.0,58360.0,0.001]
[1724026905786,0.49670386,58361.0,58354.0,0.1833]
[1724026905994,0.49670386,58361.0,58360.0,0.001]
[1724026906243,0.49670386,58361.0,58359.0,0.001]
[1724026906451,0.49670386,58361.0,58354.0,0.1833]
[1724026906452,0.49670386,58361.0,58360.0,0.001]
[1724026906866,0.49670386,58361.0,58334.0,0.011064]
[1724026906867,0.71792879,58361.0,58334.0,0.02091541]
[1724026907078,0.49670386,58361.0,58348.0,0.001]
[1724026907307,0.49670386,58361.0,58352.0,0.17155454]
[1724026907553,0.49670386,58361.0,58353.0,0.3728]
[1724026907759,0.49670386,58361.0,58354.0,0.25817697]
[1724026907962,0.89227509,58390.0,58377.0,0.001]
[1724026908170,0.51177509,58390.0,58373.0,0.3698]
[1724026908387,0.17155454,58389.0,58374.0,0.2894]
[1724026908596,0.22031935,58388.0,58345.0,0.1894]
[1724026908813,0.3805,58380.0,58352.0,0.51177509]
[1724026909072,0.03805,58379.0,58358.0,0.001]
[1724026909316,0.03805,58379.0,58360.0,0.001]
[1724026909317,0.55202,58379.0,58360.0,0.001]
[1724026909565,0.55202,58379.0,58353.0,0.00342715]
[1724026909566,0.17155454,58378.0,58368.0,0.001]
[1724026909775,0.17155454,58378.0,58356.0,0.0009097]
[1724026909776,0.51397,58377.0,58356.0,0.0009097]
[1724026909980,0.17155454,58376.0,58356.0,0.01815612]
[1724026910189,0.17155454,58372.0,58356.0,0.0009097]
[1724026910392,0.51397,58371.0,58356.0,0.0009097]
[1724026910655,0.17155454,58370.0,58356.0,0.0019097]
[1724026910870,0.51397,58369.0,58356.0,0.0009097]
[1724026911080,0.17155454,58368.0,58356.0,0.0009097]
[1724026911288,0.51397,58367.0,58356.0,0.0019097]
[1724026911497,0.17155454,58366.0,58356.0,0.0019097]
[1724026911903,0.51397,58365.0,58356.0,0.0019097]
[1724026912106,0.17155454,58364.0,58356.0,0.0009097]
[1724026912312,0.51397,58363.0,58356.0,0.0009097]
[1724026912525,0.17155454,58362.0,58356.0,0.0009097]
[1724026912752,0.58252245,58361.0,58356.0,0.0009097]
[1724026912943,0.17155454,58360.0,58351.0,0.32186976]
[1724026913146,0.51397,58359.0,58352.0,0.001]
[1724026913358,0.51397,58359.0,58351.0,0.32186976]
[1724026913359,0.68552454,58359.0,58351.0,0.32186976]
[1724026913649,0.68552454,58359.0,58332.0,0.009064]
[1724026913650,0.3719,58350.0,58332.0,0.009064]
[1724026913856,0.51397,58349.0,58332.0,0.009064]
[1724026913984,0.53697,58349.0,58332.0,0.009064]
[1724026914179,0.17155454,58343.0,58332.0,0.009064]
[1724026914385,0.80852454,58342.0,58341.0,0.13012971]
[1724026914587,0.70852454,58342.0,58341.0,0.13012971]
[1724026914787,0.80852454,58342.0,58341.0,0.13012971]
[1724026915214,0.78552454,58342.0,58341.0,0.13012971]
[1724026915428,0.75052454,58342.0,58341.0,0.13012971]
[1724026915853,0.77352454,58342.0,58341.0,0.13012971]
[1724026916643,0.78993899,58342.0,58341.0,0.13012971]
[1724026916847,0.76693899,58342.0,58341.0,0.13012971]
[1724026917251,0.76694002,58342.0,58341.0,0.13012971]
[1724026917654,0.65052454,58342.0,58341.0,0.13012971]
[1724026918269,0.64552454,58342.0,58341.0,0.13012971]
[1724026920489,0.51397,58342.0,58341.0,0.13012971]
[1724026920707,0.73692154,58342.0,58341.0,0.13012971]
[1724026920905,0.95094476,58342.0,58341.0,0.13012971]
[1724026921300,0.95094476,58342.0,58341.0,0.13103941]
[1724026921521,0.89954776,58342.0,58341.0,0.13103941]
[1724026921704,0.70194776,58342.0,58341.0,0.13103941]
[1724026922273,0.70194776,58342.0,58341.0,0.69953941]
[1724026922274,0.51397,58342.0,58341.0,0.69953941]
[1724026922479,0.47659791,58342.0,58341.0,0.69953941]
[1724026922876,0.47659791,58342.0,58341.0,2.19853941]
[1724026923098,0.47659791,58342.0,58341.0,2.19953941]
[1724026923328,0.45125154,58342.0,58341.0,2.54164849]
[1724026923530,0.45125154,58342.0,58341.0,2.54264849]
[1724026923733,0.45125154,58342.0,58341.0,2.64264849]
[1724026923940,0.45125154,58342.0,58341.0,2.19953941]
[1724026924144,0.45125154,58342.0,58341.0,2.19853941]
[1724026924349,0.45125154,58342.0,58341.0,2.37009395]
[1724026925147,0.45125154,58342.0,58341.0,2.47009395]
[1724026925364,0.45125154,58342.0,58341.0,2.47109395]
[1724026925573,0.000827,58361.0,58360.0,0.001]
[1724026925767,0.000827,58361.0,58360.0,0.597]
[1724026925939,0.000827,58361.0,58360.0,0.594]
[1724026926140,0.000827,58361.0,58360.0,2.095]
[1724026926343,0.000827,58361.0,58360.0,2.094]
[1724026926582,0.000827,58361.0,58360.0,2.095]
[1724026926763,0.000827,58361.0,58360.0,2.094]
[1724026927732,0.000827,58361.0,58360.0,2.26555454]
[1724026927936,0.000827,58361.0,58360.0,2.36855454]
[1724026928239,0.000827,58361.0,58360.0,2.54110908]
[1724026928443,0.12316492,58389.0,58360.0,2.54110908]
[1724026928444,0.07854008,58386.0,58360.0,2.13440908]
[1724026928653,0.51177509,58377.0,58364.0,0.4052]
[1724026928866,0.04926596,58389.0,58388.0,0.001]
[1724026929077,0.01645439,58389.0,58373.0,0.4052]
[1724026929308,0.01645439,58388.0,58374.0,0.27498002]
[1724026929568,0.01645439,58387.0,58376.0,0.002]
[1724026929792,0.01645439,58387.0,58374.0,0.27498002]
[1724026929793,0.04926596,58393.0,58377.0,0.43069794]
[1724026930019,0.1477979,58409.0,58377.0,0.43069794]
[1724026930020,0.01645673,58392.0,58383.0,0.002]
[1724026930221,0.04926596,58398.0,58384.0,0.55717927]
[1724026930459,0.04926596,58396.0,58385.0,0.2864]
[1724026930593,0.01646302,58395.0,58386.0,1.67155454]
[1724026930802,0.01646302,58395.0,58387.0,0.21799075]
[1724026930997,0.12316492,58404.0,58394.0,0.51177509]
[1724026931220,0.12316492,58404.0,58389.0,0.74015454]
[1724026931221,0.04952332,58404.0,58398.0,0.3822]
[1724026931421,0.04952332,58405.0,58400.0,0.3822]
[1724026931645,0.068597,58433.0,58399.0,1.60342378]
[1724026931646,0.12316492,58432.0,58402.0,0.001]
[1724026931867,0.07428499,58441.0,58401.0,0.17524502]
[1724026931868,0.12380831,58442.0,58404.0,0.5952]
[1724026932137,0.04952332,58440.0,58412.0,1.5]
[1724026932358,0.04952332,58439.0,58415.0,0.1888]
[1724026932563,0.04952332,58442.0,58417.0,0.4064]
[1724026932767,0.51177509,58444.0,58419.0,0.4064]
[1724026933065,0.51177509,58444.0,58419.0,0.5064]
[1724026933273,0.04952332,58443.0,58419.0,0.4064]
[1724026933480,0.17981454,58420.0,58412.0,1.5]
[1724026933679,0.51177509,58419.0,58402.0,0.1]
[1724026933887,0.1889,58417.0,58385.0,0.4064]
[1724026934099,0.1889,58417.0,58386.0,0.11184225]
[1724026934308,0.51177509,58413.0,58386.0,0.11184225]
[1724026934518,0.48142332,58416.0,58386.0,0.11184225]
[1724026934519,0.04952332,58415.0,58388.0,0.51177509]
[1724026934750,0.45842332,58416.0,58390.0,0.4064]
[1724026934976,0.07428499,58419.0,58389.0,0.17497908]
[1724026934977,0.04952332,58419.0,58395.0,0.17155454]
[1724026935188,0.00826,58420.0,58397.0,0.4064]
[1724026935390,0.00826,58420.0,58398.0,0.4064]
[1724026935595,0.00826,58420.0,58400.0,0.4064]
[1724026935791,0.00826,58420.0,58403.0,0.4064]
[1724026936111,0.00826,58420.0,58402.0,0.1888]
[1724026936112,0.4089,58435.0,58405.0,0.4064]
[1724026936309,0.51177509,58425.0,58406.0,0.27155454]
[1724026936511,0.17155454,58433.0,58406.0,0.27155454]
[1724026936721,0.17155454,58433.0,58410.0,0.4064]
[1724026936922,0.04952332,58441.0,58412.0,0.4064]
[1724026937159,0.51177509,58443.0,58414.0,0.4064]
[1724026937482,0.17155454,58442.0,58415.0,0.27497715]
[1724026937622,0.04952332,58449.0,58418.0,0.002]
[1724026937823,0.29995,58450.0,58420.0,0.4064]
[1724026937824,0.51177509,58446.0,58420.0,0.4064]
[1724026938085,0.17155454,58446.0,58421.0,0.27155454]
[1724026938282,0.17155454,58446.0,58422.0,0.07056523]
[1724026938479,0.17155454,58446.0,58423.0,0.17155454]
[1724026938735,0.29995,58450.0,58424.0,0.50982241]
[1724026938904,0.47150454,58450.0,58425.0,0.17155454]
[1724026939105,0.47150454,58450.0,58426.0,0.17155983]
[1724026939307,0.47150454,58450.0,58427.0,0.17155454]
[1724026939514,0.29995,58450.0,58429.0,0.1914]
[1724026939792,0.29995,58450.0,58434.0,0.1914]
[1724026939981,0.29995,58450.0,58438.0,0.17155454]
[1724026940181,0.29995,58450.0,58441.0,0.3939]
[1724026940461,0.29995,58450.0,58439.0,0.10342138]
[1724026940462,0.00825,58466.0,58447.0,0.3949]
[1724026940703,0.51177509,58464.0,58449.0,0.1893]
[1724026940913,0.00825,58466.0,58460.0,0.3939]
[1724026941125,0.00825,58466.0,58463.0,0.3939]
[1724026941337,0.00825,58466.0,58464.0,0.19271959]
[1724026941543,0.00826,58476.0,58466.0,0.3939]
[1724026941808,0.00826,58476.0,58474.0,0.5832]
[1724026942008,0.00826,58476.0,58475.0,0.69187387]
[1724026942421,0.51177509,58494.0,58476.0,0.3973]
[1724026942630,0.51177509,58494.0,58487.0,0.17155454]
[1724026942840,0.00826,58505.0,58487.0,0.17155454]
[1724026942841,0.00826,58505.0,58488.0,0.0034187]
[1724026943043,0.00826,58505.0,58489.0,0.17155454]
[1724026943264,0.00826,58505.0,58490.0,0.10341826]
[1724026943511,0.00826,58505.0,58491.0,0.19939369]
[1724026943745,0.00826,58505.0,58492.0,0.6680728]
[1724026943989,0.00826,58505.0,58492.0,0.5680728]
[1724026944179,0.00826,58505.0,58492.0,0.8841728]
[1724026944388,0.00826,58505.0,58492.0,0.97455744]
[1724026944596,0.00826,58505.0,58492.0,0.97655744]
[1724026944812,0.51177509,58515.0,58497.0,0.3854]
[1724026944813,0.4908601,58515.0,58497.0,0.3854]
[1724026945021,0.4908601,58515.0,58498.0,0.19797225]
[1724026945225,0.4908601,58515.0,58498.0,0.1]
[1724026945435,0.194,58530.0,58498.0,0.1]
[1724026945436,0.51177509,58514.0,58498.0,0.1]
[1724026945666,0.4026,58513.0,58490.0,0.3854]
[1724026945875,0.194,58512.0,58484.0,0.3854]
[1724026946291,0.416,58511.0,58479.0,0.1931]
[1724026946501,0.416,58511.0,58479.0,0.19651905]
[1724026946729,0.416,58511.0,58480.0,0.3973]
[1724026946932,0.416,58511.0,58482.0,0.3973]
[1724026947626,0.416,58511.0,58483.0,0.00341899]
[1724026948080,0.416,58511.0,58482.0,0.3973]
[1724026948305,0.416,58511.0,58483.0,0.10341909]
[1724026948550,0.194,58512.0,58484.0,0.3917]
[1724026948748,0.194,58512.0,58483.0,0.10341909]
[1724026948749,0.391,58518.0,58486.0,0.3917]
[1724026948954,0.391,58518.0,58488.0,0.3917]
[1724026949171,0.391,58518.0,58489.0,0.1]
[1724026950202,0.391,58518.0,58490.0,0.02641862]
[1724026950867,0.391,58518.0,58490.0,0.023]
[1724026951100,0.3992,58526.0,58492.0,0.3769]
[1724026951307,0.3992,58526.0,58494.0,0.3769]
[1724026951521,0.00826,58535.0,58523.0,0.17155454]
[1724026951724,0.51177509,58529.0,58524.0,0.4892]
[1724026951943,0.00826,58535.0,58524.0,0.55527545]
[1724026952794,0.00826,58535.0,58525.0,0.17155454]
[1724026952971,0.00826,58535.0,58526.0,0.1]
[1724026953237,0.00826,58535.0,58527.0,1.67155454]
[1724026953449,0.00826,58535.0,58528.0,0.1]
[1724026954282,0.593,58533.0,58496.0,1.11137509]
[1724026954527,0.593,58533.0,58511.0,0.51177509]
[1724026954528,0.17155454,58532.0,58511.0,0.51177509]
[1724026954739,0.17155454,58528.0,58497.0,0.34310908]
[1724026954960,0.3875,58527.0,58498.0,0.02070722]
[1724026955381,0.51177509,58526.0,58499.0,0.59007209]
[1724026955595,0.17155454,58526.0,58500.0,0.07975615]
[1724026955804,0.3875,58525.0,58500.0,0.07975615]
[1724026956003,0.17155454,58524.0,58501.0,0.17155454]
[1724026956361,0.17155454,58524.0,58498.0,0.01728945]
[1724026956362,0.3764,58522.0,58498.0,0.01728945]
[1724026956574,0.17155454,58521.0,58491.0,0.3763]
[1724026956812,0.17155454,58519.0,58491.0,0.3763]
[1724026957309,0.3764,58518.0,58491.0,0.3763]
[1724026957532,0.10827296,58517.0,58492.0,0.10765751]
[1724026957749,0.17155454,58516.0,58492.0,0.10765751]
[1724026958410,0.17155454,58516.0,58491.0,0.3763]
[1724026958639,0.023,58520.0,58476.0,0.3763]
[1724026958640,0.3764,58509.0,58476.0,0.3763]
[1724026958843,0.26864999,58508.0,58477.0,0.27921205]
[1724026959068,0.19455454,58508.0,58477.0,0.27921205]
[1724026959264,0.17155454,58508.0,58477.0,0.28263137]
[1724026959479,0.17155454,58508.0,58477.0,0.27921205]
[1724026959735,0.68332963,58508.0,58477.0,0.27921205]
[1724026959881,0.50167296,58507.0,58478.0,0.08118648]
[1724026960080,0.50167296,58507.0,58479.0,0.17155454]
[1724026960081,0.17155454,58506.0,58479.0,0.17155454]
[1724026961503,0.17155454,58506.0,58480.0,0.1]
[1724026961716,0.25337475,58506.0,58481.0,0.0352741]
[1724026961929,0.3764,58507.0,58483.0,0.3876]
[1724026962177,0.06713416,58535.0,58483.0,0.3876]
[1724026962178,0.1891,58520.0,58490.0,0.3876]
[1724026962381,0.51177509,58513.0,58491.0,0.17891545]
[1724026962595,0.1891,58520.0,58491.0,0.17891545]
[1724026962792,0.1891,58520.0,58491.0,0.15591545]
[1724026963043,0.17155454,58519.0,58492.0,0.2232966]
[1724026963440,0.17155454,58519.0,58493.0,0.1]
[1724026963736,0.17155454,58519.0,58494.0,0.17497277]
[1724026963947,0.17155454,58519.0,58495.0,0.17155454]
[1724026964150,0.17155454,58519.0,58496.0,0.0034181]
[1724026964354,0.17497279,58519.0,58495.0,0.17155454]
[1724026964942,0.17155454,58519.0,58497.0,0.4128]
[1724026965260,0.17155454,58519.0,58498.0,0.24186831]
[1724026965884,0.1891,58520.0,58498.0,0.24186831]
[1724026965885,0.3985,58522.0,58499.0,0.2198]
[1724026966204,0.51177509,58521.0,58500.0,0.27155454]
[1724026966420,0.3985,58522.0,58501.0,0.0637616]
[1724026966554,0.68674788,58521.0,58501.0,0.0407616]
[1724026966752,0.17497279,58521.0,58501.0,0.0407616]
[1724026966953,0.17497279,58521.0,58500.0,0.1]
[1724026967181,0.01650869,58520.0,58500.0,0.61177509]
[1724026967382,0.01650885,58519.0,58501.0,0.17497264]
[1724026967593,0.17155454,58520.0,58502.0,0.15386685]
[1724026967784,0.01650843,58519.0,58502.0,0.15386685]
[1724026967987,0.17155454,58520.0,58502.0,0.15386685]
[1724026968190,0.3985,58522.0,58503.0,0.1749723]
[1724026968398,0.02215846,58521.0,58504.0,0.1]
[1724026968667,0.016509,58520.0,58504.0,0.1]
[1724026968978,0.17497279,58519.0,58494.0,0.4078]
[1724026969095,0.02215854,58518.0,58495.0,0.51177509]
[1724026969294,0.70989133,58517.0,58494.0,0.4078]
[1724026969503,0.05153428,58516.0,58496.0,0.51177509]
[1724026969731,0.53491854,58515.0,58497.0,0.09571739]
[1724026969936,0.02215854,58514.0,58497.0,0.00341805]
[1724026970154,0.016509,58513.0,58498.0,0.56325454]
[1724026970364,0.02215858,58512.0,58499.0,0.06008506]
[1724026970574,0.016509,58511.0,58500.0,0.16655454]
[1724026970785,0.51276,58515.0,58503.0,0.5859]
[1724026970991,0.01651241,58514.0,58505.0,0.3917]
[1724026971195,0.51276,58515.0,58506.0,1.69455454]
[1724026971454,0.51276,58515.0,58506.0,1.78064176]
[1724026971657,0.51276,58515.0,58513.0,0.17155454]
[1724026971887,0.000821,58519.0,58514.0,0.32061715]
[1724026972094,0.000821,58519.0,58516.0,0.3917]
[1724026972329,0.000821,58519.0,58517.0,1.79797143]
[1724026972739,0.000821,58519.0,58518.0,0.17355454]
[1724026972945,0.000821,58519.0,58518.0,0.19797124]
[1724026973142,0.000821,58519.0,58518.0,0.29797124]
[1724026973346,0.5,58524.0,58519.0,0.595]
[1724026973556,0.5,58524.0,58521.0,0.3999]
[1724026973764,0.5,58524.0,58522.0,0.27155454]
[1724026973976,0.5,58524.0,58522.0,0.29455454]
[1724026974178,0.5,58524.0,58523.0,2.17382661]
[1724026974386,0.5,58524.0,58523.0,2.23718115]
[1724026974593,0.44863891,58524.0,58523.0,2.23718115]
[1724026974799,0.44863891,58524.0,58523.0,2.38625454]
[1724026975010,0.42147521,58524.0,58523.0,2.38825454]
[1724026975231,0.42147521,58524.0,58523.0,2.56220225]
[1724026975427,0.42147521,58524.0,58523.0,2.56320225]
[1724026975428,0.30221579,58524.0,58523.0,2.56320225]
[1724026975632,0.00826,58535.0,58533.0,0.002]
[1724026975835,0.00826,58535.0,58534.0,0.62339786]
[1724026976102,0.00826,58535.0,58534.0,1.13089786]
[1724026976249,0.00826,58535.0,58534.0,1.45914454]
[1724026976669,0.012921,58540.0,58539.0,0.004]
[1724026976922,0.012921,58540.0,58539.0,0.43601489]
[1724026977121,0.012921,58540.0,58539.0,0.70756943]
[1724026977339,0.00011,58546.0,58545.0,0.005]
[1724026977522,0.00011,58546.0,58545.0,2.58456901]
[1724026977742,0.00011,58546.0,58545.0,2.68456901]
[1724026978077,0.00011,58546.0,58545.0,2.88615454]
[1724026978276,0.00011,58546.0,58545.0,2.88815454]
[1724026978406,0.00011,58546.0,58545.0,2.88615454]
[1724026979067,0.00011,58546.0,58545.0,2.93440725]
[1724026979278,0.00011,58546.0,58545.0,2.89115454]
[1724026979474,0.00011,58546.0,58545.0,2.88815454]
[1724026979817,0.00011,58546.0,58545.0,2.88615454]
[1724026980019,0.00011,58546.0,58545.0,2.09415454]
[1724026980224,0.00011,58546.0,58545.0,1.00615454]
[1724026980436,0.00011,58546.0,58545.0,0.57915454]
[1724026980651,0.00011,58546.0,58545.0,0.62907391]
[1724026980871,0.00011,58546.0,58545.0,2.07915454]
[1724026981297,0.00011,58546.0,58545.0,0.4076]
[1724026981497,0.00011,58546.0,58545.0,0.17155454]
[1724026981860,0.00011,58546.0,58545.0,1.87096978]
[1724026982062,0.00011,58546.0,58545.0,2.24856978]
[1724026982273,0.00011,58546.0,58545.0,2.24715454]
[1724026982673,0.00011,58546.0,58545.0,2.34715454]
[1724026982834,0.00011,58546.0,58545.0,2.37015454]
[1724026983034,0.00011,58546.0,58545.0,2.37315454]
[1724026983240,0.00824,58578.0,58551.0,0.6056]
[1724026983465,0.00824,58578.0,58551.0,0.90415454]
[1724026983931,0.00824,58578.0,58551.0,2.40015454]
[1724026984148,0.00824,58578.0,58551.0,2.40415454]
[1724026984307,0.00824,58578.0,58551.0,2.40015454]
[1724026984507,0.00924,58552.0,58551.0,2.41515454]
[1724026984711,0.00924,58552.0,58551.0,2.41315454]
[1724026984910,0.00924,58552.0,58551.0,2.40115454]
[1724026985180,0.01024,58552.0,58551.0,2.41515454]
[1724026985403,0.01024,58552.0,58551.0,2.41315454]
[1724026985613,0.00824,58552.0,58551.0,2.40215454]
[1724026985824,0.00824,58552.0,58551.0,2.40015454]
[1724026986063,0.00824,58552.0,58551.0,2.18145454]
[1724026986268,0.00824,58552.0,58551.0,0.17155454]
[1724026986889,0.00924,58552.0,58551.0,0.013]
[1724026987106,0.42144,58552.0,58535.0,0.4044]
[1724026987311,0.42144,58552.0,58551.0,0.013]
[1724026987514,0.42244,58552.0,58551.0,0.013]
[1724026987722,0.78919454,58552.0,58551.0,0.013]
[1724026987941,0.61764,58552.0,58551.0,0.013]
[1724026988159,0.78919454,58552.0,58551.0,0.013]
[1724026988372,0.3929,58551.0,58526.0,0.3808]
[1724026988585,0.56445454,58551.0,58532.0,0.51177509]
[1724026988802,0.56445454,58551.0,58526.0,0.3808]
[1724026988803,0.3929,58551.0,58533.0,0.68674545]
[1724026989023,0.3929,58551.0,58533.0,0.17497036]
[1724026989214,0.20444,58552.0,58535.0,0.3808]
[1724026989215,0.00924,58552.0,58535.0,0.3808]
[1724026989417,0.00924,58552.0,58536.0,0.1939]
[1724026989624,0.00924,58552.0,58539.0,0.17155454]
[1724026989824,0.00924,58552.0,58543.0,0.002]
[1724026990059,0.00924,58552.0,58544.0,0.17155454]
[1724026990263,0.00924,58552.0,58545.0,1.623]
[1724026990470,0.00924,58552.0,58547.0,0.3896]
[1724026990675,0.00924,58552.0,58548.0,0.29455454]
[1724026990877,0.00924,58552.0,58548.0,0.27155454]
[1724026990878,0.00824,58552.0,58548.0,0.27155454]
[1724026991082,0.00824,58552.0,58548.0,0.1]
[1724026991289,0.40104,58552.0,58548.0,0.1]
[1724026991511,0.40004,58552.0,58548.0,0.1]
[1724026991938,0.40104,58552.0,58549.0,0.01]
[1724026992144,0.00924,58552.0,58549.0,0.11]
[1724026992351,0.00924,58552.0,58551.0,0.3984]
[1724026992559,0.00924,58552.0,58551.0,0.56995454]
[1724026992764,0.00924,58552.0,58551.0,0.69295454]
[1724026992979,0.00924,58552.0,58551.0,2.19295454]
[1724026993180,0.00824,58552.0,58551.0,2.39225454]
[1724026993391,0.00824,58552.0,58551.0,2.39025454]
[1724026993601,0.00924,58552.0,58551.0,2.39025454]
[1724026993811,0.00824,58552.0,58551.0,2.39025454]
[1724026994015,0.00824,58552.0,58551.0,2.40225454]
[1724026994219,0.00924,58552.0,58551.0,2.20495454]
[1724026994418,0.00924,58552.0,58551.0,2.19295454]
[1724026994623,0.01024,58552.0,58551.0,2.20495454]
[1724026994827,0.01024,58552.0,58551.0,0.112]
[1724026995234,0.01024,58552.0,58551.0,0.012]
[1724026996060,0.19614,58552.0,58551.0,0.012]
[1724026996272,0.77469454,58552.0,58551.0,0.012]
[1724026996476,0.60314,58552.0,58551.0,0.012]
[1724026996883,0.60114,58552.0,58540.0,0.0009031]
[1724026997332,0.60114,58552.0,58551.0,0.012]
[1724026997534,0.60114,58552.0,58541.0,0.00341566]
[1724026997985,0.19314,58552.0,58551.0,0.001]